[Event "1st Bangalore GM-Open-B 2024"]
[Site "Bangalore"]
[Date "2024.01.21"]
[Round "9.1"]
[White "Selvamurugan B"]
[Black "Jaidambareesh N R"]
[Result "1-0"]
[ECO "B31"]
[WhiteElo "1920"]
[BlackElo "1757"]
[Annotator "TA"]
[PlyCount "92"]
[EventDate "2024.01.20"]
[EventType "swiss"]
[EventCountry "IND"]
[SourceTitle "playchess.com"]
[Source "ChessBase"]
[SourceQuality "1"]
[TimeControl "3600+30"]

{[%evp 22,92,0,-14,6,2,29,29,29,28,27,33,43,30,23,0,0,0,0,0,0,0,0,-17,-23,-14,0,0,23,0,24,16,39,57,66,78,130,129,781,739,897,857,5397,5377,5010,4906,29979,29980,29979,29980,29976,1049,1023,1023,1023,1023,1016,1018,1000,977,928,909,837,821,29981,29982,29982,29983,29981,29981,29980,29981,29994]} 1. e4 {[%emt 0:00:02]} c5 {[%emt 0:09:48]} 2. Nf3 {[%emt 0:00:29]} Nc6 {[%emt 0:00:09]} 3. Bb5 {[%emt 0:00:05]} g6 {[%emt 0:00:11]} 4. O-O {[%emt 0:00:06]} Bg7 {[%emt 0:00:07]} 5. Re1 {[%emt 0:00:03]} Nf6 {[%emt 0:00:19]} 6. e5 {[%emt 0:00:07]} Nd5 {[%emt 0:00:06]} 7. Nc3 {[%emt 0:00:06]} Nc7 {[%emt 0:00:10]} 8. Bxc6 {[%emt 0:00:08]} dxc6 {[%emt 0:00:07]} 9. Ne4 {[%emt 0:00:08]} b6 {[%emt 0:00:12]} 10. Nf6+ {[%emt 0:00:07]} Kf8 {[%emt 0:00:06]} 11. Ne4 {[%emt 0:00:03][%cal Bf6e4,Be4d2,Bd2f3][%mdl 32]} Bg4 {[%emt 0:00:09]} 12. d3 {[%emt 0:00:04]} Ne6 {[%emt 0:00:14]} (12... Bxe5 $5 13. h3 Bxf3 14. Qxf3 Bg7 $11) 13. Ned2 {[%emt 0:01:10]} Qd5 {[%emt 0:03:28][%cal Og7e5]} 14. h3 {[%emt 0:00:08]} Bxf3 {[%emt 0:00:08] White has an edge.} 15. Nxf3 {[%emt 0:01:47]} h6 {[%emt 0:04:33]} 16. a4 {[%emt 0:00:50]} Rd8 {[%emt 0:00:42]} 17. Be3 {[%emt 0:05:21]} Kg8 {[%emt 0:00:39]} 18. Qb1 {[%emt 0:00:56]} Bxe5 {[%emt 0:08:06]} 19. Nxe5 {[%emt 0:15:45]} Qxe5 {[%emt 0:00:24]} 20. b4 {[%emt 0:00:11]} Qd6 {[%emt 0:03:35]} 21. bxc5 {[%emt 0:01:01]} bxc5 {[%emt 0:01:23]} 22. Qb3 {[%emt 0:02:21]} Kh7 {[%emt 0:04:09]} 23. Rab1 {[%emt 0:00:16]} Rd7 {[%emt 0:02:19]} 24. a5 {[%emt 0:03:53][%cal Ba4a5,Ba5a6,Ba6b7][%mdl 32]} Rf8 {[%emt 0:05:20]} 25. Qc4 {[%emt 0:05:50]} Nd4 {[%emt 0:10:50]} 26. a6 {[%emt 0:01:48]} e5 {[%emt 0:04:13]} (26... Qd5 27. Qxd5 cxd5 28. Rb7 (28. Bxd4 cxd4 29. Rb7 Rxb7 $11) 28... Rxb7 29. axb7 $16) 27. Rb7 {[%emt 0:02:09]} Rxb7 {[%emt 0:04:05]} 28. axb7 {[%emt 0:00:02]} Qc7 {[%emt 0:00:08]} (28... a5 $142) 29. Qxc5 $16 {[%emt 0:01:08] White is more active.} Rb8 {[%emt 0:00:10][%mdl 8192] A mistake that costs the game.} (29... Ne6 $16 30. Qxa7 Rb8) 30. Bxd4 $18 {[%emt 0:01:38]} (30. Qxa7 Rxb7 31. Qa2 h5 $11) 30... exd4 {[%emt 0:01:01][%mdl 4096] Endgame. KQR-KQR} 31. Re7 {[%emt 0:00:11]} (31. Qxd4 Rxb7 32. Qc5 Rb5 $11) 31... Qf4 {[%emt 0:01:16]} 32. g3 {[%emt 0:00:13]} (32. Qxa7 Qc1+ 33. Kh2 Qf4+ 34. Kh1 Qc1+ 35. Kh2 Qf4+ 36. Kh1 Qc1+ 37. Kh2 $11) 32... Qf6 {[%emt 0:02:14]} 33. Qxa7 {[%emt 0:00:53]} Qd6 {[%emt 0:01:40]} 34. Rxf7+ {[%emt 0:00:15]} Kh8 {[%emt 0:01:08] [#]} 35. Rd7 $3 {[%emt 0:01:17][%mdl 512]} Qe5 {[%emt 0:00:06]} 36. Qb6 {[%emt 0:01:19]} (36. Qa8 $142 Qe8 37. Qa7 (37. Rxd4 $2 {too greedy.} Rxa8 38. bxa8=B Qxa8 $19) 37... Qe5 38. Kg2 (38. Qxd4 Qxd4 39. Rxd4 Rxb7 $18) (38. Rxd4 h5 $18) 38... g5 39. Qb6 (39. Qxd4 Qxd4 40. Rxd4 Rxb7 $18) (39. Rxd4 g4 $18) 39... Rg8 40. Qxc6 (40. Qxd4 Qxd4 41. Rxd4 Kg7 $18) 40... Qg7 41. Rxg7 Kxg7 42. Qc7+ Kf6 43. b8=Q (43. b8=B Re8 $18)) 36... Rf8 {[%emt 0:01:44]} 37. Qxd4 {[%emt 0:03:13]} Qxd4 {[%emt 0:00:07]} 38. Rxd4 {[%emt 0:00:03] Ra4 would kill now. KR-KR} Kg7 {[%emt 0:00:08]} 39. Rd7+ {[%emt 0:00:12]} Kf6 {[%emt 0:00:06]} 40. Rc7 {[%emt 0:00:06][%cal Oc7c8] [#] White threatens Rc8! and mate.} Rb8 {[%emt 0:00:05]} 41. Rxc6+ {[%emt 0:00:05]} Kf5 {[%emt 0:00:05]} 42. Rb6 {[%emt 0:00:07] Hoping for f4.} h5 {[%emt 0:00:06]} 43. c4 {[%emt 0:00:16][%cal Bc2c4,Bc4c5,Bc5c6][%mdl 32] White mates.} Ke5 {[%emt 0:00:22]} 44. c5 {[%emt 0:00:20]} Kd5 {[%emt 0:00:05]} 45. c6 {[%emt 0:00:05]} Kd6 {[%emt 0:00:04]} 46. Ra6 {[%emt 0:00:18]} Kd5 {[%emt 0:00:09] Weighted Error Value: White=0.07 (flawless) /Black=0.61.  Loses game:     	---       	Black=1      Mistake:       	---       	Black=1      Inaccurate:     	---       	Black=1      OK:         	White=8     	Black=4      Best:        	White=1     	Black=1} 1-0

[Event "1st Bangalore GM-Open-B 2024"]
[Site "Bangalore"]
[Date "2024.01.21"]
[Round "9.2"]
[White "Madhesh Kumar S"]
[Black "Kadav Omkar"]
[Result "1-0"]
[ECO "B73"]
[WhiteElo "1664"]
[BlackElo "1725"]
[Annotator "NA RC COMBH"]
[PlyCount "78"]
[EventDate "2024.01.20"]
[EventType "swiss"]
[EventCountry "IND"]
[SourceTitle "playchess.com"]
[Source "ChessBase"]
[SourceQuality "1"]
[TimeControl "3600+30"]

1. e4 {[%emt 0:00:04]} c5 {[%emt 0:04:51]} 2. Nf3 {[%emt 0:00:05]} d6 {[%emt 0:00:12]} 3. d4 {[%emt 0:00:06]} cxd4 {[%emt 0:00:03]} 4. Nxd4 {[%emt 0:00:07]} Nf6 {[%emt 0:00:04]} 5. Nc3 {[%emt 0:00:07]} g6 {[%emt 0:00:31]} 6. Be3 {[%emt 0:00:12]} Bg7 {[%emt 0:00:06]} 7. Be2 {[%emt 0:00:05]} O-O {[%emt 0:01:03]} 8. O-O {[%emt 0:00:05]} Nc6 {[%emt 0:00:50]} 9. h3 {[%emt 0:06:19]} d5 {[%emt 0:09:23]} 10. exd5 {[%emt 0:00:13]} Nxd5 {[%emt 0:00:13]} 11. Nxd5 {[%emt 0:00:07]} Nxd4 {[%emt 0:00:28]} 12. Bxd4 {[%emt 0:00:13]} Qxd5 {[%emt 0:00:12]} 13. Bxg7 {[%emt 0:00:06]} Qxd1 {[%emt 0:00:04]} 14. Raxd1 {[%emt 0:00:16]} Kxg7 {[%emt 0:00:04]} 15. Bf3 {[%emt 0:05:23]} Be6 {[%emt 0:10:28]} 16. b3 {[%emt 0:00:23]} Rac8 {[%emt 0:02:02]} 17. c4 {[%emt 0:01:52]} b6 {[%emt 0:03:06]} 18. Bd5 {[%emt 0:04:57]} Bxd5 {[%emt 0:01:06]} 19. Rxd5 {[%emt 0:00:29]} Rfd8 {[%emt 0:00:36]} 20. Rfd1 {[%emt 0:00:23]} Rxd5 {[%emt 0:00:06]} 21. Rxd5 {[%emt 0:00:09]} Rc7 {[%emt 0:00:24]} 22. a4 {[%emt 0:04:24]} a5 {[%emt 0:03:12]} 23. Kf1 {[%emt 0:01:46]} Kf6 {[%emt 0:00:25]} 24. Ke2 {[%emt 0:02:33]} Rc5 {[%emt 0:11:00]} 25. Rd7 {[%emt 0:00:48]} Rc6 {[%emt 0:03:51]} 26. Rb7 {[%emt 0:05:32]} e5 {[%emt 0:03:46]} 27. Kd3 {[%emt 0:17:01]} Ke6 {[%emt 0:02:01]} 28. Kc3 {[%emt 0:00:23]} h5 {[%emt 0:01:13]} 29. b4 {[%emt 0:09:34]} axb4+ {[%emt 0:02:19]} 30. Kxb4 {[%emt 0:00:06]} f5 {[%emt 0:00:08]} 31. Kb5 {[%emt 0:07:14]} Rc5+ {[%emt 0:00:07]} 32. Kb4 {[%emt 0:00:11]} Rc6 {[%emt 0:00:06]} 33. Kb5 {[%emt 0:00:08]} Rc5+ {[%emt 0:00:04]} 34. Kxb6 {[%emt 0:03:14]} Rxc4 {[%emt 0:00:11]} 35. a5 {[%emt 0:00:04]} Rc2 {[%emt 0:01:21]} 36. a6 {[%emt 0:03:16]} Kd6 {[%emt 0:07:39]} 37. a7 {[%emt 0:00:27]} Rb2+ {[%emt 0:00:15]} 38. Ka5 {[%emt 0:00:37]} Rxf2 {[%emt 0:04:15]} 39. Rb4 {[%emt 0:00:07]} Ra2+ {[%emt 0:01:21]} 1-0

[Event "1st Bangalore GM-Open-B 2024"]
[Site "Bangalore"]
[Date "2024.01.21"]
[Round "9.3"]
[White "Patil Divya"]
[Black "Sushanth Vaman Shetty"]
[Result "0-1"]
[ECO "C11"]
[WhiteElo "1669"]
[BlackElo "1704"]
[Annotator "NA RC COMBH"]
[PlyCount "136"]
[EventDate "2024.01.20"]
[EventType "swiss"]
[EventCountry "IND"]
[SourceTitle "playchess.com"]
[Source "ChessBase"]
[SourceQuality "1"]
[TimeControl "3600+30"]

1. e4 {[%emt 0:00:03]} e6 {[%emt 0:01:44]} 2. d4 {[%emt 0:00:11]} d5 {[%emt 0:00:08]} 3. Nc3 {[%emt 0:00:10]} Nf6 {[%emt 0:00:04]} 4. e5 {[%emt 0:00:04]} Nfd7 {[%emt 0:00:04]} 5. f4 {[%emt 0:00:07]} c5 {[%emt 0:00:02]} 6. Nf3 {[%emt 0:00:10]} Nc6 {[%emt 0:00:05]} 7. Be3 {[%emt 0:00:16]} a6 {[%emt 0:00:04]} 8. Qd2 {[%emt 0:00:42]} b5 {[%emt 0:00:18]} 9. dxc5 {[%emt 0:00:18]} Bxc5 {[%emt 0:00:28]} 10. Bd3 {[%emt 0:01:26]} Qb6 {[%emt 0:00:12]} 11. Bxc5 {[%emt 0:00:11]} Nxc5 {[%emt 0:00:07]} 12. Qf2 {[%emt 0:00:36]} b4 {[%emt 0:00:19]} 13. Ne2 {[%emt 0:01:56]} a5 {[%emt 0:00:50]} 14. O-O {[%emt 0:00:46]} Ba6 {[%emt 0:00:40]} 15. Bxa6 {[%emt 0:03:28]} Rxa6 {[%emt 0:00:06]} 16. Rad1 {[%emt 0:02:09]} Ne4 {[%emt 0:01:39]} 17. Qxb6 {[%emt 0:00:13]} Rxb6 {[%emt 0:00:06]} 18. Nd2 {[%emt 0:03:05]} Nc5 {[%emt 0:00:29]} 19. Nb3 {[%emt 0:02:17]} Na4 {[%emt 0:00:55]} 20. Rb1 {[%emt 0:05:14]} Ke7 {[%emt 0:01:16]} 21. Nec1 {[%emt 0:05:53]} f6 {[%emt 0:01:35]} 22. exf6+ {[%emt 0:01:08]} gxf6 {[%emt 0:00:11]} 23. Nd3 {[%emt 0:00:55]} Kd6 {[%emt 0:00:13]} 24. Rbe1 {[%emt 0:01:51]} Re8 {[%emt 0:01:16]} 25. Rf3 {[%emt 0:02:04]} Rb7 {[%emt 0:03:45]} 26. Rh3 {[%emt 0:06:11]} Nb6 {[%emt 0:01:02]} 27. f5 {[%emt 0:04:47]} e5 {[%emt 0:00:53]} 28. Nbc5 {[%emt 0:01:48]} Rf7 {[%emt 0:03:26]} 29. Ne6 {[%emt 0:01:15]} Ne7 {[%emt 0:00:47]} 30. g4 {[%emt 0:09:03]} Rg8 {[%emt 0:01:10]} 31. Rg3 {[%emt 0:02:30]} h5 {[%emt 0:00:33]} 32. Ndc5 {[%emt 0:03:07]} hxg4 {[%emt 0:02:36]} 33. Nb7+ {[%emt 0:00:43]} Kd7 {[%emt 0:00:14]} 34. Rf1 {[%emt 0:00:34]} Nc4 {[%emt 0:02:13]} 35. c3 {[%emt 0:05:45]} Nd2 {[%emt 0:01:18]} 36. Rd1 {[%emt 0:00:26]} Nf3+ {[%emt 0:00:19]} 37. Kf2 {[%emt 0:00:43]} Nxf5 {[%emt 0:00:39]} 38. Ned8 {[%emt 0:00:37]} Nxg3 {[%emt 0:02:25]} 39. Rxd5+ {[%emt 0:00:25]} Ke7 {[%emt 0:00:07]} 40. Nxf7 {[%emt 0:00:58]} Ne4+ {[%emt 0:00:39]} 41. Ke3 {[%emt 0:00:09]} Kxf7 {[%emt 0:00:01]} 42. Kxe4 {[%emt 0:00:28]} Nxh2 {[%emt 0:00:03]} 43. Nd6+ {[%emt 0:01:39]} Kg6 {[%emt 0:02:06]} 44. Nf5 {[%emt 0:00:17]} Kg5 {[%emt 0:00:31]} 45. Rd7 {[%emt 0:01:43]} Nf3 {[%emt 0:01:10]} 46. c4 {[%emt 0:00:29]} Nh4 {[%emt 0:00:09]} 47. Ne3 {[%emt 0:01:24]} g3 {[%emt 0:00:48]} 48. c5 {[%emt 0:02:58]} f5+ {[%emt 0:01:00]} 49. Kxe5 {[%emt 0:00:28]} f4 {[%emt 0:00:15]} 50. Nc2 {[%emt 0:00:56]} Re8+ {[%emt 0:00:19]} 51. Kd6 {[%emt 0:00:13]} g2 {[%emt 0:00:06]} 52. Rg7+ {[%emt 0:00:08]} Ng6 {[%emt 0:00:10]} 53. Nd4 {[%emt 0:00:42]} Kf6 {[%emt 0:01:36]} 54. Rxg6+ {[%emt 0:00:22]} Kxg6 {[%emt 0:00:10]} 55. Nf3 {[%emt 0:00:04]} Kh5 {[%emt 0:00:29]} 56. c6 {[%emt 0:00:12]} Kg4 {[%emt 0:00:09]} 57. Ng1 {[%emt 0:00:13]} f3 {[%emt 0:00:09]} 58. Kd7 {[%emt 0:00:10]} f2 {[%emt 0:00:32]} 59. Kxe8 {[%emt 0:00:20]} fxg1=Q {[%emt 0:00:09]} 60. c7 {[%emt 0:00:08]} Qc5 {[%emt 0:00:42]} 61. Kd7 {[%emt 0:00:29]} Qd5+ {[%emt 0:00:09]} 62. Ke7 {[%emt 0:00:18]} Qc6 {[%emt 0:00:27]} 63. Kd8 {[%emt 0:00:07]} Qd6+ {[%emt 0:00:11]} 64. Ke8 {[%emt 0:00:18]} Qxc7 {[%emt 0:00:11]} 65. a4 {[%emt 0:00:07]} g1=Q {[%emt 0:00:00]} 66. b3 {[%emt 0:00:03]} Qga7 {[%emt 0:00:21]} 67. Kf8 {[%emt 0:00:07]} Qcb7 {[%emt 0:00:03]} 68. Ke8 {[%emt 0:00:15]} Qba8# {[%emt 0:00:01]} 0-1

[Event "1st Bangalore GM-Open-B 2024"]
[Site "Bangalore"]
[Date "2024.01.21"]
[Round "9.4"]
[White "Bharat Bansal"]
[Black "Bapat Aniket"]
[Result "0-1"]
[ECO "B56"]
[WhiteElo "1598"]
[BlackElo "1698"]
[Annotator "NA RC COMBH"]
[PlyCount "66"]
[EventDate "2024.01.20"]
[EventType "swiss"]
[EventCountry "IND"]
[SourceTitle "playchess.com"]
[Source "ChessBase"]
[SourceQuality "1"]
[TimeControl "3600+30"]

1. e4 {[%emt 0:01:02]} c5 {[%emt 0:00:05]} 2. Nf3 {[%emt 0:00:05]} Nc6 {[%emt 0:00:04]} 3. d4 {[%emt 0:00:04]} cxd4 {[%emt 0:00:04]} 4. Nxd4 {[%emt 0:00:05]} Nf6 {[%emt 0:00:10]} 5. Nc3 {[%emt 0:00:04]} d6 {[%emt 0:00:04]} 6. Be3 e5 {[%emt 0:00:05]} 7. Nb3 {[%emt 0:02:50]} Be6 {[%emt 0:00:07]} 8. f3 {[%emt 0:00:39]} Be7 {[%emt 0:00:11]} 9. Qd2 {[%emt 0:00:22]} O-O {[%emt 0:00:06]} 10. O-O-O {[%emt 0:00:20]} a5 {[%emt 0:00:06]} 11. a4 {[%emt 0:05:56]} Nb4 {[%emt 0:00:09]} 12. Kb1 {[%emt 0:11:29]} Rc8 {[%emt 0:00:36]} 13. Qf2 {[%emt 0:04:26]} d5 {[%emt 0:01:54]} 14. Bb6 {[%emt 0:12:10]} Qd6 {[%emt 0:01:20]} 15. Bxa5 {[%emt 0:05:38]} d4 {[%emt 0:01:42]} 16. Nb5 {[%emt 0:02:46]} Qc6 {[%emt 0:00:35]} 17. Bxb4 {[%emt 0:06:21]} Bxb4 {[%emt 0:00:05]} 18. Bd3 {[%emt 0:00:30]} Ra8 {[%emt 0:00:53]} 19. f4 {[%emt 0:01:52]} Ng4 {[%emt 0:02:43]} 20. Qe2 {[%emt 0:03:48]} Ne3 {[%emt 0:01:30]} 21. f5 {[%emt 0:01:23]} Bc4 {[%emt 0:00:00]} 22. Bxc4 {[%emt 0:02:35]} Nxc4 {[%emt 0:00:00]} 23. N3xd4 {[%emt 0:02:14]} exd4 {[%emt 0:00:01]} 24. Rxd4 {[%emt 0:00:16]} Rfc8 {[%emt 0:02:09]} 25. Rhd1 {[%emt 0:01:58]} Bf8 {[%emt 0:00:31]} 26. b3 {[%emt 0:01:31]} Na3+ {[%emt 0:00:06]} 27. Nxa3 {[%emt 0:00:36]} Bxa3 {[%emt 0:00:09]} 28. Qd3 {[%emt 0:00:59]} Be7 {[%emt 0:05:08]} 29. e5 {[%emt 0:02:15]} h6 {[%emt 0:00:40]} 30. f6 {[%emt 0:00:39]} Bf8 {[%emt 0:00:56]} 31. Qg3 {[%emt 0:00:32]} Qxc2+ {[%emt 0:00:10]} 32. Ka1 {[%emt 0:00:06]} Rc3 {[%emt 0:00:34]} 33. R4d3 {[%emt 0:00:47]} Qxb3 {[%emt 0:01:04]} 0-1

[Event "1st Bangalore GM-Open-B 2024"]
[Site "Bangalore"]
[Date "2024.01.21"]
[Round "9.5"]
[White "Dawda Vihaan"]
[Black "Nayak, Biswajit"]
[Result "1-0"]
[ECO "D02"]
[WhiteElo "1706"]
[BlackElo "1990"]
[Annotator "RC"]
[PlyCount "81"]
[EventDate "2024.01.20"]
[EventType "swiss"]
[EventCountry "IND"]
[SourceTitle "playchess.com"]
[Source "ChessBase"]
[SourceQuality "1"]
[TimeControl "3600+30"]

1. Nf3 {[%emt 0:00:06]} Nf6 {[%emt 0:00:42]} 2. g3 {[%emt 0:00:08]} d5 {[%emt 0:00:26]} 3. Bg2 {[%emt 0:00:06]} Bg4 {[%emt 0:00:07]} 4. O-O {[%emt 0:00:12]} Nbd7 {[%emt 0:00:09]} 5. d4 {[%emt 0:00:52]} c6 {[%emt 0:06:40]} 6. h3 {[%emt 0:00:53]} Bxf3 {[%emt 0:02:11]} 7. exf3 {[%emt 0:01:06]} e6 {[%emt 0:00:19]} 8. Nd2 {[%emt 0:01:33]} c5 {[%emt 0:01:16]} 9. c4 {[%emt 0:01:40]} Be7 {[%emt 0:01:23]} 10. cxd5 {[%emt 0:02:04]} Nxd5 11. f4 {[%emt 0:02:54]} O-O {[%emt 0:00:46]} 12. f5 {[%emt 0:01:36]} Nc7 13. Nc4 {[%emt 0:05:18]} cxd4 {[%emt 0:07:20]} 14. Qxd4 {[%emt 0:01:03]} Nc5 {[%emt 0:03:51]} 15. Qg4 {[%emt 0:04:08]} exf5 {[%emt 0:01:26]} 16. Qxf5 {[%emt 0:00:11]} N7e6 {[%emt 0:02:42]} 17. Be3 {[%emt 0:03:33]} Qc7 {[%emt 0:05:12]} 18. b4 {[%emt 0:05:41]} Na6 {[%emt 0:06:15]} 19. Rac1 {[%emt 0:01:04]} Qd7 {[%emt 0:15:14]} 20. a3 {[%emt 0:10:25]} Rad8 {[%emt 0:02:25]} 21. Na5 {[%emt 0:03:35]} g6 {[%emt 0:04:05]} 22. Qf3 {[%emt 0:02:44]} Qd3 {[%emt 0:01:45]} 23. Nc4 {[%emt 0:05:44]} b6 {[%emt 0:02:19]} 24. Qb7 {[%emt 0:01:33]} Nac7 {[%emt 0:01:47]} 25. Qxa7 {[%emt 0:00:07]} Bf6 {[%emt 0:01:43]} 26. Nxb6 {[%emt 0:01:34]} Nb5 {[%emt 0:00:21]} 27. Qa5 {[%emt 0:03:23]} Nc3 {[%emt 0:00:38]} 28. Kh2 {[%emt 0:00:40]} Nd4 {[%emt 0:00:54]} 29. Qa7 {[%emt 0:03:04]} Nde2 {[%emt 0:00:43]} 30. Rce1 {[%emt 0:00:15]} Be5 {[%emt 0:00:16]} 31. Na4 {[%emt 0:01:42]} Bb8 {[%emt 0:00:12]} 32. Qa5 {[%emt 0:00:13]} Rfe8 {[%emt 0:01:08]} 33. Nxc3 {[%emt 0:00:49]} Nxc3 {[%emt 0:01:29]} 34. Bg5 {[%emt 0:01:37]} Rc8 {[%emt 0:00:21]} 35. Bf6 {[%emt 0:01:08]} Ne2 {[%emt 0:00:51]} 36. Qg5 {[%emt 0:00:07]} Re6 {[%emt 0:00:40]} 37. Ba1 {[%emt 0:01:12]} Rc2 {[%emt 0:00:47]} 38. Rd1 {[%emt 0:00:39]} Nxg3 {[%emt 0:00:30]} 39. Qd8+ {[%emt 0:00:20]} Qxd8 {[%emt 0:00:30]} 40. Rxd8+ {[%emt 0:00:02]} Re8 {[%emt 0:00:00]} 41. Rxe8# {[%emt 0:00:09]} 1-0

[Event "1st Bangalore GM-Open-B 2024"]
[Site "Bangalore"]
[Date "2024.01.21"]
[Round "10.1"]
[White "Yash Abhijit Patil"]
[Black "Selvamurugan B"]
[Result "1/2-1/2"]
[ECO "D77"]
[WhiteElo "1689"]
[BlackElo "1920"]
[Annotator "TA"]
[PlyCount "31"]
[EventDate "2024.01.20"]
[EventType "swiss"]
[EventCountry "IND"]
[SourceTitle "playchess.com"]
[Source "ChessBase"]
[SourceQuality "1"]
[TimeControl "3600+30"]

{[%evp 15,31,33,34,32,68,54,47,55,58,41,31,0,61,0,30,0,58,0]} 1. d4 {[%emt 0:00:28]} Nf6 {[%emt 0:00:17]} 2. Nf3 {[%emt 0:00:20]} g6 {[%emt 0:00:09]} 3. g3 {[%emt 0:01:38]} Bg7 {[%emt 0:00:26]} 4. Bg2 {[%emt 0:00:20]} O-O {[%emt 0:00:10]} 5. O-O {[%emt 0:00:23]} d5 {[%emt 0:00:13]} 6. c4 {[%emt 0:00:58]} dxc4 {[%emt 0:00:56]} 7. Na3 {[%emt 0:00:22]} Nc6 {[%emt 0:03:02]} 8. Nxc4 {[%emt 0:02:55]} Be6 {[%emt 0:00:27][%cal Bc8e6,Be6d5,Bd5e4][%mdl 32]} 9. b3 {[%emt 0:02:14]} Nd5 {[%emt 0:05:09]} 10. Bb2 {[%emt 0:01:45] Inhibits Nc3. Black must now prevent e4.} Nb6 {[%emt 0:01:15]} 11. Rc1 {[%emt 0:02:50]} Bd5 {[%emt 0:02:49]} 12. Ne3 {[%emt 0:05:52]} Be4 {[%emt 0:00:01]} 13. Nc4 {[%emt 0:00:07]} Bd5 {[%emt 0:00:01]} 14. Ne3 {[%emt 0:00:07]} Be4 {[%emt 0:00:04]} 15. Nc4 {[%emt 0:00:04]} Bd5 {[%emt 0:00:02]} 16. Ne3 {[%emt 0:00:05] Weighted Error Value: White=0.20 (precise) /Black=0.05 (flawless) .  Mistake:       	White=1     	---        Inaccurate:     	White=1     	Black=1      OK:         	White=2     	Black=4      Best:        	---       	Black=1} ({Better is} 16. e3 $14) 1/2-1/2

[Event "1st Bangalore GM-Open-B 2024"]
[Site "Bangalore"]
[Date "2024.01.21"]
[Round "10.2"]
[White "Sushanth Vaman Shetty"]
[Black "Madhesh Kumar S"]
[Result "0-1"]
[ECO "C47"]
[WhiteElo "1704"]
[BlackElo "1664"]
[Annotator "NA RC COMBH"]
[PlyCount "64"]
[EventDate "2024.01.20"]
[EventType "swiss"]
[EventCountry "IND"]
[SourceTitle "playchess.com"]
[Source "ChessBase"]
[SourceQuality "1"]
[TimeControl "3600+30"]

1. e4 {[%emt 0:05:57]} e5 {[%emt 0:00:06]} 2. Nf3 {[%emt 0:00:04]} Nc6 {[%emt 0:00:06]} 3. Nc3 {[%emt 0:00:03]} Nf6 {[%emt 0:00:09]} 4. a3 {[%emt 0:00:05]} d5 {[%emt 0:00:15]} 5. Bb5 {[%emt 0:00:09]} Nxe4 {[%emt 0:00:07]} 6. Qe2 {[%emt 0:00:20]} Nxc3 {[%emt 0:04:35]} 7. Qxe5+ {[%emt 0:00:07]} Be7 {[%emt 0:00:49]} 8. Bxc6+ {[%emt 0:00:54]} bxc6 {[%emt 0:00:05]} 9. Qxc3 {[%emt 0:00:08]} O-O {[%emt 0:06:36]} 10. Qxc6 {[%emt 0:00:49]} Rb8 {[%emt 0:03:31]} 11. O-O {[%emt 0:01:08]} d4 {[%emt 0:01:47]} 12. Qe4 {[%emt 0:07:45]} Bf6 {[%emt 0:01:40]} 13. d3 {[%emt 0:00:55]} Rb6 {[%emt 0:05:19]} 14. b4 {[%emt 0:00:56]} g5 {[%emt 0:10:20]} 15. Nd2 {[%emt 0:04:11]} Bg7 {[%emt 0:07:40]} 16. Nc4 {[%emt 0:01:43]} f5 {[%emt 0:00:18]} 17. Qe2 {[%emt 0:00:53]} Re6 {[%emt 0:01:32]} 18. Qh5 {[%emt 0:02:38]} f4 {[%emt 0:00:21]} 19. Bd2 {[%emt 0:02:37]} Rh6 {[%emt 0:05:07]} 20. Qf3 {[%emt 0:03:50]} g4 {[%emt 0:04:07]} 21. Qe4 {[%emt 0:00:43]} Bf5 {[%emt 0:00:31]} 22. Qe1 {[%emt 0:00:51]} Be6 {[%emt 0:02:00]} 23. f3 {[%emt 0:00:48]} Bxc4 {[%emt 0:01:21]} 24. dxc4 {[%emt 0:00:07]} d3 {[%emt 0:00:31]} 25. c3 {[%emt 0:02:58]} g3 {[%emt 0:03:28]} 26. h3 {[%emt 0:03:20]} Re8 {[%emt 0:00:12]} 27. Qb1 {[%emt 0:00:36]} Re2 {[%emt 0:00:09]} 28. Bxf4 {[%emt 0:00:36]} Bd4+ {[%emt 0:00:04]} 29. Rf2 {[%emt 0:00:56]} gxf2+ {[%emt 0:00:09]} 30. Kh2 {[%emt 0:00:06]} Re1 {[%emt 0:00:14]} 31. Qxd3 {[%emt 0:00:15]} Rxa1 {[%emt 0:00:12]} 32. Qe4 {[%emt 0:01:05]} f1=N+ {[%emt 0:00:15]} 0-1